{"text_format":"1","workbook":"xlsx","n_sheets":5,"sheets":["ΕΝΤΥΠΟ A1-19 Δ΄ δοση  ","ΕΝΤΥΠΟ Α4-19 Α ΔΟΣΗ","ΕΝΤΥΠΟ A5-19 Δ΄ δοση ","ΕΝΤΥΠΟ A6-19 Δ΄ δοση ","ΕΝΤΥΠΟ Α7-19 Δ΄ ΔΟΣΗ "],"not_rendered":{"charts":0,"images":0,"macros":0,"external_links":0,"defined_names":4,"comments":0,"pivot_tables":0},"unopened":[],"bounds":{"document_bytes":16777216,"sheet_cells":100000,"rows_first":2000,"rows_last":500,"rows_between":2000,"halvings":0,"cell_chars":16384,"cell_head_chars":4096},"cells_cut":0,"cells_raw":0,"read":"whole","date_system":"1900"}

{"sheet":"ΕΝΤΥΠΟ A1-19 Δ΄ δοση  ","index":0,"n_rows":32,"n_cols":8,"rows_kept":32,"cut":false,"hidden":false,"merged":[[0,1,0,8],[1,1,1,8],[31,1,31,8],[23,1,23,8],[27,1,27,8],[28,1,28,8],[22,1,22,8],[8,2,8,4],[10,1,10,2],[14,1,14,8],[16,1,16,8],[11,1,11,8],[13,1,13,8],[15,1,15,8],[3,2,3,8],[4,6,4,8],[5,6,5,8],[6,5,6,8],[7,6,7,8],[8,6,8,8],[9,1,9,8],[10,3,10,8],[7,2,7,4],[4,2,4,4],[5,2,5,4],[6,2,6,4],[18,1,18,8],[19,3,19,5],[19,7,19,8],[20,1,20,8],[29,1,30,8],[25,6,25,8]]}
[null,"ΒΕΒΑΙΩΣΗ  ΠΑΡΕΧΟΜΕΝΩΝ ΥΠΗΡΕΣΙΩΝ"]
[null,"μηνός Δεκεμβρίου 2019"]
[]
[null,"Επωνυμία Φορέα"]
[null,"Περιφέρεια",null,null,null,"Νομός"]
[null,"Δ/νση, Περιοχή",null,null,null,"T.K."]
[null,"Νομική Μορφή"]
[null,"e-mail Φορέα",null,null,null,"Τηλέφωνο"]
[null,"e-mail Δήμου",null,null,null,"Τηλέφωνο"]
[]
[null,"Υπεύθυνος Επικοινωνίας"]
[]
[]
[null,"Προς την"]
[null,"ΕΛΛΗΝΙΚΗ ΕΤΑΙΡΕΙΑ ΤΟΠΙΚΗΣ ΑΝΑΠΤΥΞΗΣ ΚΑΙ ΑΥΤΟΔΙΟΙΚΗΣΗΣ Α.Ε. "]
[null,"Μυλλέρου 73-77, 104 36 Αθήνα   τηλεφ.213-1320.600"]
[null,"Ως νόμιμος εκπρόσωπος του φορέα βεβαιώνω ότι ο φορέας μας, στο πλαίσιο του προγράμματος \"ΒΟΗΘΕΙΑ ΣΤΟ ΣΠΙΤΙ\", παρείχε κατά την περίοδο 1/12/2019 – 31/12/2019,  όλες τις υπηρεσίες που όφειλε στους εξυπηρετούμενους.  Όλοι οι εξυπηρετούμενοι και οι εργαζομενοι που παραθέτουμε αφορούν ΜΟΝΟΝ το Πρόγραμμα «Βοήθεια στο Σπίτι», και δεν χρηματοδοτούνται από άλλη πηγή."]
[]
[null,"Πιο συγκεκριμένα ο φορέας μας, για το παραπάνω χρονικό διάστημα, παρείχε υπηρεσίες σε"]
[null,"  ( αριθμός )",null," εξυπηρετούμενους, από τις (αριθμός )",null,null,null,"δομές του"]
[null,"φορέα μας"]
[]
[null,"Η βεβαίωση εκδίδεται για την σχετική  χρηματοδότηση του προγράμματος ΒΟΗΘΕΙΑ ΣΤΟ ΣΠΙΤΙ 2019 από  το Υπουργείο Εργασίας Κοινωνικής Ασφάλισης & Πρόνοιας, το Υπουργείο Εσωτερικών, και το ΕΦΚΑ για την περίοδο 1/01/2019- 31/12/2019."]
[null,"Έλαβα γνώση των όρων της συμμετοχής μας στο πρόγραμμα, τους οποίους αποδέχομαι πλήρως."]
[]
[null,null,null,null,null,"Ημερομηνία"]
[]
[null,"Ο  νόμιμος εκπρόσωπος του φορέα"]
[]
[]
[]
[null,"Ονοματεπώνυμο, υπογραφή και σφραγίδα"]

{"sheet":"ΕΝΤΥΠΟ Α4-19 Α ΔΟΣΗ","index":1,"n_rows":32,"n_cols":10,"rows_kept":32,"cut":false,"hidden":false,"merged":[[30,1,30,3],[31,7,31,8],[30,7,30,8],[10,2,10,3],[11,2,11,3],[12,2,12,3],[13,2,13,3],[14,2,14,3],[15,2,15,3],[10,4,10,5],[11,4,11,5],[12,4,12,5],[13,4,13,5],[14,4,14,5],[15,4,15,5],[10,6,10,7],[31,1,31,3],[0,0,0,7],[26,6,26,7],[25,4,25,5],[20,6,20,7],[21,6,21,7],[22,6,22,7],[23,6,23,7],[24,6,24,7],[25,6,25,7],[22,2,22,3],[23,2,23,3],[24,2,24,3],[25,2,25,3],[2,0,2,1],[3,0,3,1],[4,0,4,1],[19,2,19,3],[20,2,20,3],[2,2,2,8],[3,2,3,4],[17,4,17,5],[18,4,18,5],[18,6,18,7],[4,2,4,4],[3,6,3,8],[4,6,4,8],[7,6,7,7],[19,4,19,5],[20,4,20,5],[8,6,8,7],[9,6,9,7],[19,6,19,7],[16,6,16,7],[17,6,17,7],[16,4,16,5],[11,6,11,7],[12,6,12,7],[13,6,13,7],[14,6,14,7],[15,6,15,7],[26,0,26,5],[7,2,7,3],[8,2,8,3],[9,2,9,3],[7,4,7,5],[16,2,16,3],[17,2,17,3],[18,2,18,3],[24,4,24,5],[21,2,21,3],[21,4,21,5],[22,4,22,5],[23,4,23,5],[8,4,8,5],[9,4,9,5]]}
["ΣΥΓΚΕΝΤΡΩΤΙΚΗ ΚΑΤΑΣΤΑΣΗ ΕΡΓΑΖΟΜΕΝΩΝ ΑΝΑ ΕΙΔΙΚΟΤΗΤΑ ΚΑΙ  ΣΧΕΣΗ ΕΡΓΑΣΙΑΣ ΑΝΑ ΦΟΡΕΑ"]
[]
["Επωνυμία Φορέα"]
["Περιφέρεια",null,null,null,null,"Νομός"]
["Υπεύθυνος επικοινωνίας",null,null,null,null,"Τηλέφωνα"]
[]
[]
["A/A","ΕΙΔΙΚΟΤΗΤΑ","ΟΡΙΣΜΕΝΟΥ ΧΡΟΝΟΥ",null,"ΣΥΜΒΑΣΗ ΕΡΓΟΥ",null,"ΑΟΡΙΣΤΟΥ ΧΡΟΝΟΥ",null,"ΣΥΝΟΛΟ"]
[1,"π.χ ΚΟΙΝΩΝΙΚΟΣ ΛΕΙΤΟΥΡΓΟΣ",3,null,1,null,2,null,{"$f":" IF( ISTEXT(B9), C9+D9+E9+F9+G9+H9,\"\")","v":6}]
[{"$f":"IF(ISTEXT(B10),A9+1,\"\")","v":""},null,null,null,null,null,null,null,{"$f":" IF( ISTEXT(B10), C10+D10+E10+F10+G10+H10,\"\")","v":""},{"$f":" IF( ISTEXT(B10), C10+D10+E10+F10+G10+H10,\"\")","v":""}]
[""]
[""]
[""]
[""]
[""]
[""]
["",null,null,null,null,null,null,null,"",""]
["",null,null,null,null,null,null,null,"",""]
["",null,null,null,null,null,null,null,""]
["",null,null,null,null,null,null,null,""]
["",null,null,null,null,null,null,null,""]
["",null,null,null,null,null,null,null,""]
["",null,null,null,null,null,null,null,""]
["",null,null,null,null,null,null,null,""]
[{"$f":"IF(ISTEXT(B25),A24+1,\"\")","v":""},null,null,null,null,null,null,null,""]
["",null,null,null,null,null,null,null,""]
[null,null,null,null,null,null,"ΣΥΝΟΛΟ",null,{"$f":"SUM(I9:I26)","v":6}]
[]
[]
[]
[null,null,null,null,null,null,"Ημερομηνία"]
[null,"Ονοματεπώνυμο νόμιμου εκπροσώπου, υπογραφή & σφραγίδα"]

{"sheet":"ΕΝΤΥΠΟ A5-19 Δ΄ δοση ","index":2,"n_rows":54,"n_cols":10,"rows_kept":54,"cut":false,"hidden":false,"merged":[[0,0,0,9],[1,0,1,9],[2,0,2,9],[38,6,38,8],[6,0,6,1],[4,2,4,9],[5,2,5,6],[6,2,6,6],[5,8,5,9],[6,8,6,9],[4,0,4,1],[5,0,5,1],[8,5,8,9],[8,0,8,4],[53,4,53,9],[52,4,52,9],[48,8,48,9],[38,1,38,3],[40,0,40,9],[41,0,41,9]]}
["ΣΥΓΚΕΝΤΡΩΤΙΚΗ ΚΑΤΑΣΤΑΣΗ "]
["ΔΙΟΙΚΗΤΙΚΑ ΚΟΣΤΗ ΚΑΙ ΧΡΗΣΗΣ ΟΧΗΜΑΤΩΝ"]
[" ΦΟΡΕΑ"]
[]
["Επωνυμία Φορέα"]
["Περιφέρεια",null,null,null,null,null,null,"Νομός"]
["Τηλέφωνο",null,null,null,null,null,null,"Κιν. Τηλέφωνο"]
[]
["ΔΙΟΙΚΗΤΙΚΟ ΚΟΣΤΟΣ",null,null,null,null,"ΚΟΣΤΟΣ ΧΡΗΣ. ΟΧΗΜΑΤΩΝ"]
["Α/Α*","ΗΜΕΡΟΜ.\nΕΚΔΟΣΗΣ","ΗΜΕΡΟΜΗΝ. ΕΞΟΦΛΗΣΗΣ","ΑΡΙΘΜΟΣ\n ΤΙΜΟΛΟΓ.","ΠΟΣΟ\n ΣΕ ΕΥΡΩ","Α/Α*","ΗΜΕΡΟΜ.\nΕΚΔΟΣΗΣ","ΗΜΕΡΟΜΗΝ.\nΕΞΩΦΛΗΣΗΣ","ΑΡΙΘΜΟΣ\n ΤΙΜΟΛΟΓ.","ΠΟΣΟ\n ΣΕ ΕΥΡΩ"]
[1,"2019-01-01",null,null,0,1,"2019-01-01",null,null,0]
[2,null,null,null,null,2]
[]
[]
[]
[]
[]
[]
[]
[]
[]
[]
[]
[]
[]
[]
[]
[]
[]
[]
[]
[]
[]
[]
[]
[]
[]
[null,null,"2019-12-21",null,null,null,null,"2019-12-21"]
[null,"ΣΥΝΟΛΟ",null,null,{"$f":"SUM(E11:E38)","v":0},null,"ΣΥΝΟΛΟ",null,null,{"$f":"SUM(J11:J38)","v":0}]
[]
["Όλα τα παραστατικά θα πρέπει να έχουν εκδοθεί εντός της χρονικής περιόδου του Προγράμματος, "]
["να αναγράφεται από τον εκδότη \"Πρόγραμμα Βοήθεια στο Σπίτι 2019\" και να έχουν εξοφληθεί το αργότερο έως και τις 21/12/2019."]
[]
["* ΣΗΜΕΙΩΝΕΤΑΙ  Ο ΙΔΙΟΣ ΑΡΙΘΜΟΣ ΚΑΙ ΣΤΟ ΑΝΤΙΓΡΑΦΟ ΠΟΥ ΜΑΣ ΣΤΕΛΝΕΤΕ  (ΦΥΣΙΚΟ ΑΡΧΕΙΟ)."]
[]
["Δηλώνω ότι όλα τα παραπάνω κόστη είναι αληθή,και αφορούν μόνο το Πρόγραμμα πληρώθηκαν  και σας "]
["επισυνάπτω τα σχετκά αντίιγραφα των αποδεικτικών εξόφλησης των τιμολογίων."]
[]
[null,null,null,null,null,null,null,"Ημερομηνία"]
[]
[]
[]
[]
[null,null,null,null,"Ονοματεπώνυμο νόμιμου εκπροσώπου, υπογραφή και σφραγίδα"]

{"sheet":"ΕΝΤΥΠΟ A6-19 Δ΄ δοση ","index":3,"n_rows":35,"n_cols":10,"rows_kept":35,"cut":false,"hidden":false,"merged":[[0,0,0,8],[1,0,1,9],[2,0,2,9],[20,3,20,8],[21,3,21,8],[6,3,6,7],[7,0,7,1],[7,3,7,7],[9,0,10,0],[9,1,10,1],[9,3,10,8],[9,9,10,9],[22,3,22,8],[4,0,4,1],[4,3,4,9],[5,0,5,1],[5,3,5,7],[17,3,17,8],[18,3,18,8],[13,3,13,8],[16,3,16,8],[19,3,19,8],[11,3,11,8],[15,3,15,8],[12,3,12,8],[14,3,14,8],[6,0,6,1],[34,0,34,6],[33,0,33,6],[29,0,29,9],[23,3,23,8],[24,3,24,8],[26,3,26,8],[25,3,25,8],[27,3,27,8]]}
[]
["ΠΙΝΑΚΑΣ ΑΠΟΔΕΙΚΤΙΚΩΝ  ΠΛΗΡΩΜΗΣ ΜΙΣΘΟΔΟΣΙΑΣ"]
["ΠΡΟΣΟΧΗ ΕΝΑΣ ΠΙΝΑΚΑΣ ΓΙΑ ΤΟΥΣ  4 ΜΗΝΕΣ (ΣΕΠΤΕΜΒΡΙΟΣ-ΔΕΚΕΜΒΡΙΟΣ 2019)"]
[]
["Επωνυμία Φορέα"]
["Περιφέρεια",null,null,null,null,null,null,null,"Νομός"]
["Υπεύθυνος Επικοινωνίας",null,null,null,null,null,null,null,"Τηλέφωνο"]
["e-mail",null,null,null,null,null,null,null,"Κινητό"]
[]
["Α/Α Αποδεικτικού* ","Ημερ/νία Πληρωμής",null,"Αιτιολογία - Αναλυτική Περιγραφή",null,null,null,null,null,"ΠΟΣΟ ΣΕ ΕΥΡΩ (€)"]
[]
[1,"2019-10-09",null,"ΠΛΗΡΩΤΕΟ ΕΡΓΑΖ. ΜΙΣΘΟΔ. ΜΗΝΟΣ Σεπτεμβρίου 2019"]
[2,"2019-10-26",null,"ΙΚΑ  (ΑΣΦΑΛΙΣΜ+ΕΡΓΟΔ.) μηνος Σεπτεμβρίου 2019"]
[3,"2019-10-26",null,"πληρωμη ΦΜΥ  Σεπτεμβρίου 2019"]
[4,"2019-10-26",null,"πληρωμη ΛΟΙΠΩΝ ΦΟΡΩΝ   Σεπτεμβρίου 2019 (Αλληλεγγ.κλπ)"]
[5,"2019-11-09",null,"ΠΛΗΡΩΤΕΟ ΕΡΓΑΖ. ΜΙΣΘΟΔ. ΜΗΝΟΣ Οκτώβριου 2019"]
[6,"2019-11-23",null,"ΙΚΑ  (ΑΣΦΑΛΙΣΜ+ΕΡΓΟΔ.) μηνος Οκτώβριου 2019"]
[7,"2019-11-23",null,"πληρωμη ΦΜΥ Οκτώβριου 2019"]
[8,"2019-11-23",null,"πληρωμη ΛΟΙΠΩΝ ΦΟΡΩΝ Οκτώβριου 2019(Αλληλεγγ.κλπ)"]
[9,"2019-12-09",null,"ΠΛΗΡΩΤΕΟ ΕΡΓΑΖ. ΜΙΣΘΟΔ. ΜΗΝΟΣ Νοεμβρίου 2019"]
[10,"2019-12-27",null,"ΙΚΑ  (ΑΣΦΑΛΙΣΜ+ΕΡΓΟΔ.) μηνος Νοεμβρίου 2019"]
[11,"2019-12-27",null,"πληρωμη ΦΜΥ Νοεμβρίου 2019"]
[12,"2019-12-27",null,"πληρωμη ΛΟΙΠΩΝ ΦΟΡΩΝ Νοεμβρίου 2019 (Αλληλεγγ.κλπ)"]
[13,"2020-01-09",null,"ΠΛΗΡΩΤΕΟ ΕΡΓΑΖ. ΜΙΣΘΟΔ. ΜΗΝΟΣ Δεκεμβρίου 2019"]
[14,"2020-01-28",null,"ΙΚΑ  (ΑΣΦΑΛΙΣΜ+ΕΡΓΟΔ.) μηνος Δεκεμβρίου 2019"]
[15,"2020-01-28",null,"πληρωμη ΦΜΥ Δεκεμβρίου 2019"]
[16,"2020-01-28",null,"πληρωμη ΛΟΙΠΩΝ ΦΟΡΩΝ Δεκεμβρίου 2019 (Αλληλεγγ.κλπ)"]
[null,null,null,"ΣΥΝΟΛΟ",null,null,null,null,null,{"$f":"SUM(J12:J19)","v":0}]
[]
["* ΣΗΜΕΙΩΝΕΤΑΙ  Ο ΙΔΙΟΣ ΑΡΙΘΜΟΣ ΚΑΙ ΣΤΟ ΑΝΤΙΓΡΑΦΟ ΠΟΥ ΜΑΣ ΣΤΕΛΝΕΤΕ  (ΦΥΣΙΚΟ ΑΡΧΕΙΟ)."]
["Δηλώνω ότι τα παραπάνω κόστη είναι αληθή,  αφορούν ΜΟΝΟΝ το πρόγραμμα ΒΟΗΘΕΙΑ ΣΤΟ ΣΠΙΤΙ 2019"]
["και παρακαλώ όπως προχωρήσετε στην αποπληρωμή μας."]
[]
[null,null,null,null,null,null,null,null,"Ημερομηνία :"]
["Ονοματεπώνυμο νόμιμου εκπροσώπου, υπογραφή και σφραγίδα"]

{"sheet":"ΕΝΤΥΠΟ Α7-19 Δ΄ ΔΟΣΗ ","index":4,"n_rows":34,"n_cols":12,"rows_kept":34,"cut":false,"hidden":false,"merged":[[30,3,30,5],[33,2,33,8],[32,2,32,9],[0,1,0,15],[6,2,6,7],[13,2,13,11],[18,2,18,5],[2,1,2,3],[2,4,2,14],[3,1,3,3],[4,1,4,3],[15,2,15,5],[16,2,16,5],[17,2,17,5],[25,2,25,5],[26,2,26,5],[27,2,27,5],[28,2,28,5],[19,2,19,5],[20,2,20,5],[21,2,21,5],[22,2,22,5],[23,2,23,5],[24,2,24,5],[3,4,3,7],[4,4,4,7],[3,9,3,10],[4,9,4,10],[3,12,3,14],[4,12,4,14]]}
[null,"Στατιστικά στοιχεία μηνός ΔΕΚΕΜΒΡΙΟΥ 2019\n (ΕΝΑ ΕΝΤΥΠΟ ΑΝΑ ΦΟΡΕΑ)"]
[]
[null,"Επωνυμία Φορέα"]
[null,"e-mail φορέα",null,null,null,null,null,null,"ΤΗΛΕΦ.1",null,null,"ΚΙΝΗΤΟ"]
[null,"e-mail Δήμου",null,null,null,null,null,null,"ΤΗΛΕΦ.2",null,null,"ΚΙΝΗΤΟ"]
[]
[null,null,"Ηλικιακή ανάλυση εξυπηρετούμενων ανά φύλο"]
[]
[null,null,null,"ΑΜΕΑ","65-70 ΕΤΩΝ","71-77 ΕΤΩΝ","78+ ΕΤΩΝ","ΣΥΝΟΛΟ"]
[null,null,"ΑΝΔΡΕΣ",null,null,null,null,{"$f":"SUM(D10:G10)","v":0}]
[null,null,"ΓΥΝΑΙΚΕΣ",null,null,null,null,{"$f":"SUM(D11:G11)","v":0}]
[null,null,"ΣΥΝΟΛΑ",{"$f":"SUM(D10:D11)","v":0},{"$f":"SUM(E10:E11)","v":0},{"$f":"SUM(F10:F11)","v":0},{"$f":"SUM(G10:G11)","v":0},{"$f":"SUM(H10:H11)","v":0}]
[]
[null,null,"Είδος Υπηρεσιών και συχνότητα παροχής τους σε αριθμό εξυπηρετούμενων"]
[]
[null,null,"ΥΠΗΡΕΣΙΑ",null,null,null,"5 ΦΟΡΕΣ\nΕΒΔΟΜ.","2-4 ΦΟΡΕΣ\nΕΒΔΟΜ.","1 ΦΟΡΑ\nΕΒΔΟΜ.","2 ΦΟΡΕΣ\nΜΗΝΙΑΙΑ","1 ΦΟΡΑ\nΜΗΝΙΑΙΑ","ΣΥΝΟΛΑ \nΑΤΟΜΩΝ/\nΥΠΗΡΕΣΙΑ"]
[null,null,"Ατομική Κοινωνική Στήριξη",null,null,null,null,null,null,null,null,{"$f":"SUM(G17:K17)","v":0}]
[null,null,"Κοινωνική Στήριξη Οικογένειας",null,null,null,null,null,null,null,null,{"$f":"SUM(G18:K18)","v":0}]
[null,null,"Νοσηλευτική Φροντίδα",null,null,null,null,null,null,null,null,0]
[null,null,"Υγιεινή και καθαριότητα οικείας",null,null,null,null,null,null,null,null,0]
[null,null,"Αγορές ειδών πρώτης ανάγκης",null,null,null,null,null,null,null,null,0]
[null,null,"Φαγητό - Σίτηση",null,null,null,null,null,null,null,null,0]
[null,null,"Υποβοήθηση μετακινήσεων",null,null,null,null,null,null,null,null,0]
[null,null,"Ιατρική Φροντίδα",null,null,null,null,null,null,null,null,0]
[null,null,"Φυσιοθεραπευτική φροντίδα",null,null,null,null,null,null,null,null,0]
[null,null,"Συνοδεία / Διαμεσολάβηση με φορείς",null,null,null,null,null,null,null,null,0]
[null,null,"Κοινωνική συναναστροφή",null,null,null,null,null,null,null,null,0]
[null,null,"Ενημέρωση για παροχές που δικαιούνται",null,null,null,null,null,null,null,null,{"$f":"SUM(G28:K28)","v":0}]
[null,null,"Σύνολα",null,null,null,{"$f":"SUM(G17:G28)","v":0},{"$f":"SUM(H17:H28)","v":0},{"$f":"SUM(I17:I28)","v":0},{"$f":"SUM(J17:J28)","v":0},{"$f":"SUM(K17:K28)","v":0}]
[]
[null,null,"Ημερομηνία"]
[]
[]
[null,null,"Ονοματέπωνυμο/υπογραφή του νομίμου εκπροσωπου και σφραγίδα φορέα"]